bitfinex/quotes_ETHUSD_20250106
["timestamp","ask_amount","ask_price","bid_price","bid_amount"]
[1736148968198,1.92367315,3652.6,3652.3,0.07280321]
[1736148968398,1.13147315,3652.6,3652.3,0.07280321]
[1736148968750,1.13147315,3652.6,3652.2,3.88356764]
[1736148968904,1.13147315,3652.6,3652.4,0.07274967]
[1736148969107,0.7933,3652.9,3652.4,0.07274967]
[1736148969400,0.7933,3652.9,3652.5,0.07269613]
[1736148969790,0.7933,3652.9,3652.3,0.65168057]
[1736148969992,0.7933,3652.9,3652.6,0.0726426]
[1736148970203,0.7933,3652.9,3652.2,3.88356764]
[1736148970204,0.7933,3652.9,3652.2,3.53975]
[1736148970379,0.93952493,3652.8,3652.7,0.07258907]
[1736148970575,0.93952493,3652.8,3652.2,3.53975]
[1736148970779,0.93952493,3652.8,3652.7,0.07258907]
[1736148970993,0.7506,3652.7,3651.8,3.28724879]
[1736148971380,2.15982269,3652.7,3651.8,0.54889879]
[1736148971578,2.15982269,3652.7,3651.9,2.73829]
[1736148971889,1.40922269,3652.7,3652.3,3.39133809]
[1736148972092,1.40922269,3652.7,3652.6,2.73777]
[1736148972495,1.40922269,3652.7,3652.6,3.54667]
[1736148972820,1.69794077,3652.7,3652.6,4.43845481]
[1736148974022,3.48621942,3653.3,3652.6,1.70068481]
[1736148974222,3.48621942,3653.3,3652.8,2.73762]
[1736148975097,1.13661764,3653.2,3652.8,2.73762]
[1736148976479,0.005,3653.4,3652.8,2.73762]
[1736148976715,0.29003584,3653.4,3652.6,3.54666]
[1736148977017,0.005,3653.4,3652.6,0.8089]
[1736148977227,0.005,3653.4,3652.7,2.73768]
[1736148977703,0.005,3653.4,3652.6,0.8089]
[1736148978016,0.005,3653.4,3652.4,2.63323809]
[1736148978017,0.7642,3653.3,3652.4,0.53989033]
[1736148978516,0.95478176,3653.3,3652.4,0.53989033]
[1736148978882,1.89385858,3653.3,3652.4,0.53989033]
[1736148979116,1.89385858,3653.3,3652.3,2.73794]
[1736148979418,1.3069,3653.2,3652.3,0.55446715]
[1736148979618,2.73771,3652.7,3651.9,1.14303397]
[1736148979917,0.7982,3652.6,3651.8,1.90313397]
[1736148980718,0.7982,3652.6,3651.8,0.7601]
[1736148981622,0.7982,3652.6,3651.8,0.55830316]
[1736148982181,1.13661764,3652.9,3651.5,0.00649353]
[1736148982182,0.7985,3652.5,3651.5,0.00649353]
[1736148982402,0.7985,3652.2,3651.5,0.00649353]
[1736148985007,0.7985,3652.2,3651.6,2.7385]
[1736148985732,0.7985,3652.2,3651.7,2.73843]
[1736148986082,0.7985,3652.2,3651.8,0.07293648]
[1736148986288,0.7985,3652.2,3651.5,2.74508353]
[1736148986488,0.7985,3652.2,3651.6,0.07304359]
[1736148986684,0.7985,3652.2,3651.6,2.81154359]
[1736148987054,0.7985,3652.2,3651.7,2.7384]
[1736148987337,0.7985,3652.2,3651.8,0.07293648]
[1736148987546,0.7985,3652.2,3651.9,2.73823]
[1736148987837,0.7961,3652.5,3651.9,2.81111292]
[1736148990508,0.7961,3652.5,3652.0,2.7382]
[1736148990757,0.7961,3652.5,3652.1,0.07283345]
[1736148991440,1.13661764,3652.7,3651.9,0.31742666]
[1736148991598,1.13661764,3652.7,3652.2,0.0727799]
[1736148991939,1.13661764,3652.7,3652.3,0.07272636]
[1736148992149,0.7986,3652.8,3652.1,2.7381]
[1736148992305,0.7986,3652.8,3652.4,0.07267282]
[1736148992638,0.7986,3652.8,3651.9,0.31742666]
[1736148992843,0.7986,3652.8,3652.5,0.07261928]
[1736148993014,0.7986,3652.8,3652.4,2.73792]
[1736148993218,0.7986,3652.8,3652.6,0.07256575]
[1736148993414,0.7986,3652.8,3652.5,0.07261928]
[1736148993629,0.7986,3652.8,3652.4,2.73792]
[1736148993943,0.7986,3652.8,3652.5,0.07261928]
[1736148995828,0.7986,3652.8,3652.2,2.73805]
[1736148996149,0.7986,3652.8,3652.2,3.63470882]
[1736148996324,0.7986,3652.8,3652.3,0.07254196]
[1736148996526,0.7986,3652.8,3652.2,3.63470882]
[1736148996748,0.7986,3652.8,3652.4,0.07248842]
[1736148996945,0.7986,3652.8,3652.2,0.89665882]
[1736148997126,0.7986,3652.8,3652.5,0.07243488]
[1736148997326,0.7986,3652.8,3652.6,2.73777]
[1736148997525,1.96621764,3653.1,3652.6,0.07238135]
[1736148997726,1.13661764,3653.1,3652.9,2.73753]
[1736148998257,1.13661764,3653.1,3653.0,0.07216724]
[1736148998411,0.8346,3653.4,3653.0,0.07216724]
[1736148998412,1.97121764,3653.4,3653.0,0.07216724]
[1736148998614,1.97121764,3653.4,3653.1,2.73738]
[1736148998847,1.97121764,3653.4,3653.1,0.07183327]
[1736148999234,1.97121764,3653.4,3652.9,2.73747]
[1736148999430,1.97121764,3653.4,3653.2,0.07177975]
[1736148999663,1.97121764,3653.4,3652.7,5.37086809]
[1736148999830,1.97121764,3653.4,3652.8,0.5753279]
[1736149000030,0.8346,3653.4,3652.9,2.73754]
[1736149000542,0.8346,3653.4,3653.0,2.70512488]
[1736149000543,0.005,3653.4,3653.0,2.70512488]
[1736149000851,0.005,3653.4,3653.3,2.73725]
[1736149001056,0.005,3653.4,3653.0,2.70512488]
[1736149001231,0.005,3653.4,3653.3,0.07165327]
[1736149001432,0.005,3653.4,3653.2,2.73731]
[1736149001632,0.005,3653.4,3653.3,0.07165327]
[1736149001957,0.005,3653.4,3653.3,5.44214136]
[1736149003022,0.005,3653.4,3653.3,2.80890327]
[1736149003235,0.005,3653.4,3653.3,0.07165327]
[1736149003557,0.005,3653.4,3653.2,2.73731]
[1736149003760,0.005,3653.4,3653.3,0.07165327]
[1736149004141,0.005,3653.4,3653.3,2.80890327]
[1736149010138,0.00170455,3653.4,3653.3,2.80890327]
[1736149015879,0.00170455,3653.4,3653.3,0.07165327]
[1736149016449,0.00170455,3653.4,3653.1,0.54864099]
[1736149016735,0.00170455,3653.4,3653.2,0.74495106]
[1736149018879,0.7639,3653.3,3653.2,0.07145715]
[1736149021299,0.7639,3653.3,3652.9,2.73752]
[1736149021584,0.7639,3653.3,3653.0,2.73746]
[1736149021890,0.7639,3653.3,3653.0,2.80902419]
[1736149025680,0.7639,3653.3,3653.0,0.07156419]
[1736149026192,0.7639,3653.3,3653.1,0.07157597]
[1736149026697,0.7639,3653.3,3652.7,2.73769]
[1736149027075,0.7639,3653.3,3652.8,0.07173654]
[1736149027591,0.7639,3653.3,3652.9,0.07165229]
[1736149028070,0.7639,3653.3,3652.7,2.73769]
[1736149028462,0.7639,3653.3,3652.8,0.07170581]
[1736149028993,0.7686,3653.3,3652.9,0.07165229]
[1736149029156,0.7686,3653.3,3652.6,0.00649158]
[1736149029360,0.7686,3653.3,3653.0,0.07159876]
[1736149029572,1.11934346,3653.3,3652.6,0.00649158]
[1736149029892,1.11934346,3653.3,3653.1,0.07154524]
[1736149030073,1.11934346,3653.3,3652.6,0.00649158]
[1736149030271,0.7686,3653.3,3653.2,0.07149172]
[1736149030474,0.7686,3653.3,3652.6,0.00649158]
[1736149030676,0.7686,3653.3,3653.2,0.07149172]
[1736149030876,0.7686,3653.3,3652.6,0.00649158]
[1736149031072,0.7686,3653.3,3653.2,0.07149172]
[1736149031284,1.11934346,3653.3,3652.6,0.00649158]
[1736149031776,1.11934346,3653.3,3652.7,0.07175934]
[1736149033595,0.7612,3653.2,3652.7,0.07175934]
[1736149041376,0.93956238,3653.1,3652.7,0.07175934]
[1736149045585,1.89781764,3653.2,3652.7,0.07175934]
[1736149045586,0.7612,3653.2,3652.7,0.07175934]
[1736149046378,0.3597463,3653.2,3652.7,0.07175934]
[1736149046578,0.8176,3653.1,3652.7,0.07175934]
[1736149047510,1.3676,3652.9,3652.7,0.07175934]
[1736149047718,0.8176,3652.8,3652.7,0.07175934]
[1736149047890,0.8176,3652.8,3652.6,0.00649158]
[1736149048925,0.410521,3652.8,3652.6,0.00649158]
[1736149049113,0.8176,3652.7,3652.6,0.00649158]
[1736149050018,0.8176,3652.7,3652.6,0.078273]
[1736149050225,0.8176,3652.7,3652.6,0.00649158]
[1736149050427,0.8176,3652.7,3652.6,0.07829605]
[1736149050626,0.8176,3652.7,3652.6,0.00649158]
[1736149050812,0.8176,3652.7,3652.6,0.07829605]
[1736149051119,0.8176,3652.7,3652.6,0.00649158]
[1736149051348,0.8176,3652.7,3652.6,0.07829605]
[1736149051523,0.8176,3652.7,3652.6,0.00649158]
[1736149051724,0.8176,3652.7,3652.6,0.07829605]
[1736149051890,0.8176,3652.7,3652.6,0.00649158]
[1736149052428,0.8176,3652.7,3652.6,0.07829605]
[1736149052631,0.8176,3652.7,3652.6,0.00649158]
[1736149053338,0.8176,3652.7,3652.6,0.07829605]
[1736149053490,0.8176,3652.7,3652.6,0.00649158]
[1736149053909,1.65907386,3652.7,3652.6,0.00649158]
[1736149054110,1.65567386,3652.7,3652.6,0.07829605]
[1736149054302,1.65567386,3652.7,3652.6,0.00649158]
[1736149055460,4.39337386,3652.7,3652.6,0.00649158]
[1736149055798,6.74056068,3652.7,3652.6,0.00649158]
[1736149056710,7.87584567,3652.7,3652.6,0.00649158]
[1736149057934,6.74056068,3652.7,3652.6,0.00649158]
[1736149059629,3.16138682,3652.7,3652.6,0.00649158]
[1736149060729,3.71138682,3652.7,3652.6,0.00649158]
[1736149060932,6.44908682,3652.7,3652.6,0.00649158]
[1736149062851,7.58405495,3652.7,3652.6,0.00649158]
[1736149064025,6.44908682,3652.7,3652.6,0.00649158]
[1736149064236,7.20208514,3652.7,3652.6,0.00649158]
[1736149064955,8.90002591,3652.7,3652.6,0.00649158]
[1736149067955,11.90002591,3652.7,3652.6,0.00649158]
[1736149070623,14.33260903,3652.7,3652.6,0.00649158]
[1736149071882,12.07909571,3652.7,3652.6,0.00649158]
[1736149073063,14.33260903,3652.7,3652.6,0.00649158]
[1736149075867,14.45460903,3652.7,3652.6,0.00649158]
[1736149079564,12.20109571,3652.7,3652.6,0.00649158]
[1736149080966,12.0270998,3652.7,3652.6,0.00649158]
[1736149082076,12.57759846,3652.7,3652.6,0.00649158]
[1736149083276,12.20214115,3652.7,3652.6,0.00649158]
[1736149087882,16.20771283,3652.7,3652.6,0.00649158]
[1736149089169,13.39082117,3652.7,3652.6,0.00649158]
[1736149090686,16.20771283,3652.7,3652.6,0.00649158]
[1736149091470,10.04213449,3652.7,3652.6,0.00649158]
[1736149091991,11.23081451,3652.7,3652.6,0.00649158]
[1736149092758,15.34331451,3652.7,3652.6,0.00649158]
[1736149093168,12.3534983,3652.7,3652.6,0.00649158]
[1736149093950,10.64836684,3652.7,3652.6,0.00649158]
[1736149094257,12.9152585,3652.7,3652.6,0.00649158]
[1736149094462,9.3527585,3652.7,3652.6,0.00649158]
[1736149094686,12.0904585,3652.7,3652.6,0.00649158]
[1736149095082,13.42855933,3652.7,3652.6,0.00649158]
[1736149095889,6.50217931,3652.7,3652.6,0.00649158]
[1736149097382,4.22780778,3652.7,3652.6,0.00649158]
[1736149098294,6.50217931,3652.7,3652.6,0.00649158]
[1736149098586,9.23987931,3652.7,3652.6,0.00649158]
[1736149099581,9.78239944,3652.7,3652.6,0.00649158]
[1736149099886,7.04469944,3652.7,3652.6,0.00649158]
[1736149100785,4.22780778,3652.7,3652.6,0.00649158]
[1736149101352,4.22780778,3652.7,3652.6,0.81909158]
[1736149101908,4.22780778,3652.7,3652.6,1.24659284]
[1736149101909,4.62252999,3652.7,3652.6,1.24659284]
[1736149103197,0.93887473,3652.7,3652.6,1.24659284]
[1736149104276,2.12755475,3652.7,3652.6,0.07828468]
[1736149104478,1.18868002,3652.7,3652.6,0.00649158]
[1736149104999,2.73764,3652.8,3652.6,0.00649158]
[1736149105703,4.2300041,3652.7,3652.6,0.00649158]
[1736149108313,2.34938314,3652.7,3652.6,0.78679158]
[1736149108688,2.34938314,3652.7,3652.6,3.52456158]
[1736149108904,2.34938314,3652.7,3652.6,3.94869938]
[1736149109774,1.13696513,3653.0,3652.7,0.7803]
[1736149110404,1.13696513,3653.0,3652.6,0.00649158]
[1736149110575,1.13696513,3653.0,3652.7,0.07143602]
[1736149110778,0.55,3652.9,3652.6,0.00649158]
[1736149110978,2.73763,3652.8,3652.6,0.00649158]
[1736149112356,4.05417111,3652.7,3652.6,0.00649158]
[1736149113058,8.14067111,3652.7,3652.6,0.00649158]
[1736149113360,9.21077797,3652.7,3652.6,0.00649158]
[1736149113745,9.38468155,3652.7,3652.6,0.00649158]
[1736149115159,12.20157321,3652.7,3652.6,0.00649158]
[1736149116424,12.32357321,3652.7,3652.6,0.00649158]
[1736149119714,11.52477321,3652.7,3652.6,0.00649158]
[1736149120502,10.98054162,3652.7,3652.6,0.00649158]
[1736149122089,8.70788155,3652.7,3652.6,0.00649158]
[1736149122278,11.70788155,3652.7,3652.6,0.00649158]
[1736149122469,12.47908155,3652.7,3652.6,0.00649158]
[1736149124381,18.20733424,3652.7,3652.6,0.00649158]
[1736149124693,0.55,3652.4,3651.4,0.7928]
[1736149124851,3.28792,3652.4,3651.5,0.353161]
[1736149126602,1.13572006,3652.0,3651.5,0.353161]
[1736149127900,2.07459479,3652.0,3651.5,0.353161]
[1736149128402,2.07459479,3652.0,3651.4,0.7928]
[1736149129502,3.4831337,3652.0,3651.4,0.7928]
[1736149129893,3.4831337,3652.0,3651.1,0.7892]
[1736149130080,1.18910382,3651.9,3651.1,3.52809]
[1736149131826,0.93887473,3651.8,3651.1,3.52809]
[1736149132112,0.93887473,3651.8,3651.2,0.40830776]
[1736149132274,0.93887473,3651.8,3651.1,0.7892]
[1736149134486,0.93887473,3651.8,3651.1,3.52809]
[1736149134487,2.3468208,3651.8,3651.1,3.52809]
[1736149135794,2.07459479,3651.9,3651.1,3.52809]
[1736149136181,2.07459479,3651.9,3651.2,0.07289256]
[1736149137117,0.93887473,3651.9,3651.2,0.07289256]
[1736149143795,1.18910382,3651.6,3651.2,0.07289256]
[1736149144102,1.18910382,3651.6,3650.8,0.8284]
[1736149144302,1.18910382,3651.6,3651.3,0.07049722]
[1736149144512,1.18910382,3651.6,3650.8,0.8284]
[1736149144740,1.18910382,3651.6,3651.4,0.07047824]
[1736149145032,2.82008545,3651.5,3650.8,0.8284]
[1736149145217,2.34604307,3651.5,3650.8,0.8284]
[1736149145407,0.7768,3651.3,3650.9,0.06853324]
[1736149146024,0.7768,3651.3,3650.5,3.53793]
[1736149146231,0.7768,3651.3,3651.0,0.06847966]
[1736149146430,1.18910382,3651.2,3650.5,0.7986]
[1736149146630,1.18910382,3651.2,3651.1,0.06842608]
[1736149146818,1.6595602,3651.2,3650.5,0.7986]
[1736149147021,1.18910382,3651.2,3651.1,0.06842608]
[1736149147522,1.18910382,3651.2,3650.5,0.7986]
[1736149147832,1.18910382,3651.2,3651.1,0.06842608]
[1736149148130,1.18910382,3651.2,3650.5,0.7986]
[1736149148327,1.18910382,3651.2,3651.1,0.06842608]
[1736149148519,1.77313221,3651.2,3650.5,0.7986]
[1736149148721,1.18910382,3651.2,3651.1,0.06842608]
[1736149148931,1.18910382,3651.2,3650.5,0.7986]
[1736149149098,1.18910382,3651.2,3651.1,0.06842608]
[1736149149532,1.18910382,3651.2,3650.5,0.7986]
[1736149149733,1.18910382,3651.2,3651.1,0.06842608]
[1736149149945,1.77313221,3651.2,3650.5,0.7986]
[1736149150099,1.18910382,3651.2,3651.1,0.06842608]
[1736149150299,1.18910382,3651.2,3650.5,0.7986]
[1736149150510,1.18910382,3651.2,3651.1,0.06842608]
[1736149151007,1.18910382,3651.2,3650.5,0.7986]
[1736149151207,1.18910382,3651.2,3651.1,0.06842608]
[1736149151414,1.77313221,3651.2,3650.5,0.7986]
[1736149151733,1.18910382,3651.2,3650.5,0.7986]
[1736149151929,1.18910382,3651.2,3650.6,0.068694]
[1736149152130,0.7768,3651.3,3650.6,0.068694]
[1736149152330,1.18910382,3651.2,3650.6,0.068694]
[1736149153150,0.7768,3651.3,3650.6,0.068694]
[1736149153299,1.13572006,3651.5,3650.8,0.8276]
[1736149153695,1.13572006,3651.5,3650.9,0.06853324]
[1736149154134,1.13572006,3651.5,3651.0,0.8072]
[1736149154337,1.13572006,3651.5,3651.0,2.06478348]
[1736149154501,1.13572006,3651.7,3651.1,0.20647835]
[1736149154708,1.13572006,3651.7,3651.3,0.8072]
[1736149155137,1.13572006,3651.7,3651.4,0.06826536]
[1736149155637,1.94612006,3651.7,3651.4,0.06826536]
[1736149155862,1.67298422,3651.6,3651.4,0.06826536]
[1736149156021,4.41150422,3651.6,3650.8,0.8072]
[1736149156339,4.41150422,3651.6,3650.9,0.06853324]
[1736149156838,0.8104,3651.1,3650.9,0.06853324]
[1736149157217,0.8104,3651.1,3650.4,1.35862694]
[1736149157631,0.8104,3651.1,3650.5,0.0687476]
[1736149158144,0.7702,3651.4,3650.5,0.0687476]
[1736149158440,1.13242488,3651.3,3650.5,0.0687476]
[1736149159813,0.93775477,3651.3,3650.5,2.8080876]
[1736149160940,0.7702,3651.4,3650.5,2.8080876]
[1736149162043,2.3440814,3651.3,3650.5,0.0687476]
[1736149162938,2.3440814,3651.3,3650.4,1.35862694]
[1736149163506,0.93775477,3651.3,3650.4,1.35862694]
[1736149163742,0.93775477,3651.3,3650.5,0.40981069]
[1736149164079,0.93775477,3651.3,3650.5,0.47872329]
[1736149166042,3.67651477,3651.3,3650.5,0.47872329]
[1736149166336,3.67651477,3651.3,3650.5,0.0689126]
[1736149167626,0.93775477,3651.2,3650.5,0.0689126]
[1736149168753,2.07172801,3651.3,3650.5,0.0689126]
[1736149169954,1.4065082,3651.2,3650.5,0.0689126]
[1736149170256,1.4065082,3651.2,3650.6,0.7846]
[1736149170437,1.4065082,3651.2,3650.8,0.7846]
[1736149170821,1.4065082,3651.2,3650.9,0.06869824]
[1736149171350,0.93775477,3651.3,3650.9,0.06869824]
[1736149172152,0.93775477,3651.3,3650.8,0.7846]
[1736149172465,0.93775477,3651.3,3650.1,0.55513516]
[1736149172466,0.93775477,3651.3,3651.1,0.7871]
[1736149172817,2.07172801,3651.4,3651.2,0.0685375]
[1736149173854,2.07172801,3651.4,3651.1,0.7871]
[1736149174221,2.07172801,3651.6,3651.1,0.7871]
[1736149175141,2.73869,3651.4,3650.5,0.8203]
[1736149175363,2.73869,3651.4,3650.5,1.58022239]
[1736149176455,2.34509744,3651.3,3650.5,1.58022239]
[1736149176876,2.34509744,3651.3,3650.6,0.54910347]
[1736149177670,3.47907068,3651.3,3650.6,0.54910347]
[1736149179105,3.47907068,3651.4,3650.6,0.54910347]
[1736149180503,1.13397324,3651.3,3650.6,1.33596906]
[1736149183072,1.13397324,3651.3,3650.6,0.54910347]
[1736149183983,2.07172801,3651.3,3650.6,0.54910347]
[1736149184289,0.7666,3651.1,3650.6,0.54910347]
[1736149184675,0.7666,3651.1,3650.7,0.06883228]
[1736149184874,1.90057324,3651.1,3650.7,0.06883228]
[1736149185073,1.90057324,3651.1,3650.6,0.54910347]
[1736149185376,1.90057324,3651.1,3650.8,0.06877869]
[1736149185589,1.13397324,3651.1,3650.8,0.06877869]
[1736149185978,0.93775477,3651.0,3650.6,0.54910347]
[1736149186283,0.93775477,3651.0,3650.9,0.06872511]
[1736149186484,0.93775477,3651.0,3650.6,0.54910347]
[1736149186684,0.93775477,3651.0,3650.6,0.95997482]
[1736149187050,0.93775477,3651.0,3650.7,0.06883228]
[1736149187488,2.07172801,3651.2,3650.6,0.95997482]
[1736149187698,2.07172801,3651.2,3650.8,0.06877869]
[1736149187875,2.07172801,3651.2,3650.7,0.06883228]
[1736149188077,2.07172801,3651.2,3650.9,0.06872511]
[1736149188405,2.07172801,3651.2,3650.6,0.54910347]
[1736149188605,2.07172801,3651.2,3651.0,0.06867153]
[1736149188803,2.07172801,3651.2,3650.6,0.95997482]
[1736149188804,2.07172801,3651.1,3650.6,0.54910347]
[1736149189930,0.93775477,3651.0,3650.6,0.54910347]
[1736149192291,0.93775477,3651.0,3650.6,3.28835347]
[1736149192986,0.93775477,3651.0,3650.6,0.54910347]
[1736149194386,0.93775477,3651.0,3650.5,0.8203]
[1736149194762,0.93775477,3650.9,3650.5,0.8203]
[1736149194978,0.93775477,3650.9,3650.5,1.38166617]
[1736149196287,0.93775477,3650.9,3650.6,0.06890507]
[1736149198109,0.93775477,3650.9,3650.3,0.7812]
[1736149198291,0.93775477,3650.9,3650.7,0.06885148]
[1736149198496,0.93775477,3650.9,3650.3,0.7812]
[1736149198692,0.93775477,3650.9,3650.8,0.06879789]
[1736149198897,0.93775477,3650.9,3650.3,0.7812]
[1736149199379,1.1894411,3650.5,3650.4,0.06901226]
[1736149199712,1.1894411,3650.5,3650.0,0.7605]
[1736149199907,1.1894411,3650.5,3650.4,0.06715142]
[1736149200091,1.1894411,3650.5,3650.0,0.7605]
[1736149200285,1.1894411,3650.7,3650.4,0.06715142]
[1736149200485,2.18072926,3650.7,3650.0,0.7605]
[1736149200686,1.1894411,3650.7,3650.0,0.7605]
[1736149200889,1.1894411,3650.7,3650.1,0.06731223]
[1736149201387,1.1894411,3650.5,3650.1,0.06731223]
[1736149201582,3.48033037,3650.4,3650.1,0.06731223]
[1736149201775,3.48033037,3650.4,3649.8,0.8235]
[1736149202078,3.48033037,3650.4,3650.2,0.06725862]
[1736149202291,3.48033037,3650.4,3649.8,0.8235]
[1736149202827,1.1894411,3650.3,3649.9,0.06741945]
[1736149203035,3.9290911,3650.1,3649.9,0.06741945]
[1736149203332,3.9290911,3650.1,3649.6,0.02499038]
[1736149203516,1.1894411,3649.9,3649.6,0.02499038]
[1736149204189,4.7339911,3649.7,3649.6,0.02499038]
[1736149204571,5.2839911,3649.7,3649.6,0.02499038]
[1736149205093,8.2839911,3649.7,3649.6,0.02499038]
[1736149206330,8.42693193,3649.7,3649.6,0.02499038]
[1736149206624,12.33392833,3649.7,3649.6,0.02499038]
[1736149206777,13.4723285,3649.7,3649.6,0.02499038]
[1736149206977,14.92222086,3649.7,3649.6,0.02499038]
[1736149207381,15.04422086,3649.7,3649.6,0.02499038]
[1736149207575,7.71648723,3649.7,3649.6,0.02499038]
[1736149207830,4.97653723,3649.7,3649.6,0.02499038]
[1736149208482,5.14519083,3649.7,3649.6,0.02499038]
[1736149208876,7.88514083,3649.7,3648.7,0.8109]
[1736149209117,2.74002,3649.6,3648.7,0.8109]
[1736149209297,1.0724511,3649.5,3648.8,0.06800937]
[1736149209815,1.0724511,3649.5,3648.7,0.8109]
[1736149210030,1.0724511,3649.5,3648.9,0.06795572]
[1736149210234,2.74002,3649.6,3648.8,0.06800937]
[1736149210398,2.74012,3649.5,3649.0,0.06790208]
[1736149210723,2.74012,3649.5,3648.7,0.8109]
[1736149211077,2.74012,3649.5,3648.8,0.06800937]
[1736149211625,0.55,3649.6,3648.8,0.06800937]
[1736149211934,0.78,3649.2,3648.8,0.06800937]
[1736149212280,0.78,3649.2,3648.5,0.8325]
[1736149212703,0.78,3649.2,3648.6,0.06811666]
[1736149213106,0.78,3649.5,3648.6,0.06811666]
[1736149213816,3.5201,3649.5,3648.6,0.06811666]
[1736149214136,2.7402,3649.4,3648.6,0.06811666]
[1736149214326,0.78,3649.5,3648.6,0.06811666]
[1736149214707,2.74018,3649.4,3648.6,0.06811666]
[1736149215407,2.74027,3649.3,3648.6,0.06811666]
[1736149215741,0.7605,3649.0,3648.6,0.06811666]
[1736149216044,0.7605,3649.0,3648.1,0.766]
[1736149216218,0.7605,3649.0,3648.7,0.06885298]
[1736149216418,0.7605,3649.0,3648.1,0.766]
[1736149216613,0.7605,3649.0,3648.8,0.06879933]
[1736149216815,1.110591,3649.0,3648.1,0.766]
[1736149217015,0.7605,3649.0,3648.9,0.06874569]
[1736149217244,0.7568,3649.2,3648.1,4.05042979]
[1736149217446,0.122,3649.1,3648.2,3.55013]
[1736149217643,0.122,3649.1,3648.2,3.61925126]
[1736149218318,0.7568,3649.5,3648.3,0.8091]
[1736149218527,0.122,3649.6,3648.5,0.8091]
[1736149218826,0.122,3649.6,3648.4,0.40608445]
[1736149218827,1.13103668,3650.1,3649.4,0.7887]
[1736149219250,1.13103668,3650.1,3649.5,0.06807541]
[1736149219831,1.13103668,3650.1,3649.4,3.52886]
[1736149220166,0.8046,3650.4,3649.6,0.06802179]
[1736149220322,0.8046,3650.4,3649.5,0.06868506]
[1736149220512,242.0,3650.0,3649.5,0.06868506]
[1736149220711,242.0,3650.0,3649.4,3.52886]
[1736149220907,242.0,3650.0,3649.4,3.881746]
[1736149222016,242.0,3650.0,3649.4,4.41845179]
[1736149222239,242.0,3650.0,3649.6,2.74001]
[1736149223144,242.0,3650.0,3649.7,0.7505]
[1736149223332,242.0,3650.0,3649.9,6.12963346]
[1736149223524,242.0,3650.0,3649.9,7.01659381]
[1736149226973,242.0,3650.0,3649.6,5.37928346]
[1736149227168,242.0,3650.0,3649.6,3.57255]
[1736149228845,242.0,3650.0,3649.6,3.47193346]
[1736149229046,242.0,3650.0,3649.9,3.536]
[1736149234563,0.811,3650.9,3649.9,3.536]
[1736149234751,0.354998,3650.8,3649.9,3.536]
[1736149235065,3.094128,3650.8,3649.9,0.7962]
[1736149235367,3.094128,3650.8,3650.0,0.09584514]
[1736149235575,0.7822,3650.7,3650.0,0.09584514]
[1736149235780,0.7822,3650.4,3649.5,0.7569]
[1736149236163,2.73951,3650.3,3649.5,0.7569]
[1736149236362,2.73951,3650.3,3649.6,0.09606269]
[1736149236987,2.73959,3650.2,3649.6,0.09606269]
[1736149237142,2.73959,3650.2,3649.2,0.7837]
[1736149237342,2.73959,3650.2,3649.3,0.09622588]
[1736149237666,0.7665,3650.1,3649.3,0.09622588]
[1736149240184,2.73974,3650.0,3649.3,0.09622588]
[1736149240386,2.73981,3649.9,3649.3,0.09622588]
[1736149240560,3.50616,3650.1,3648.9,3.50064]
[1736149240890,3.50616,3650.1,3649.4,0.09619452]
[1736149241063,0.350616,3650.0,3648.9,3.50064]
[1736149241262,0.350616,3650.0,3649.5,0.09614012]
[1736149241587,0.350616,3650.0,3649.6,0.09608572]
[1736149241802,0.350616,3650.0,3649.0,5.37980346]
[1736149241975,3.50616,3650.1,3649.7,0.09603133]
[1736149242290,3.50616,3650.1,3649.0,5.37980346]
[1736149242490,3.50616,3650.1,3649.8,0.09597694]
[1736149242789,3.50616,3650.1,3649.0,5.37980346]
[1736149242959,3.50616,3650.1,3649.9,0.09592256]
[1736149243166,0.350616,3650.0,3649.0,5.37980346]
[1736149243379,3.50616,3650.1,3650.0,0.09586817]
[1736149243590,3.50616,3650.1,3649.0,5.37980346]
[1736149244102,3.50616,3650.1,3649.1,0.09635773]
[1736149244590,2.73974,3650.0,3649.1,0.09635773]
[1736149245151,2.73981,3649.9,3649.1,0.09635773]
[1736149245360,0.8024,3649.7,3648.9,0.7601]
[1736149245670,2.74005,3649.6,3648.7,0.8281]
[1736149245865,2.74005,3649.6,3649.0,0.09641214]
[1736149246071,3.1415581,3649.6,3648.7,0.8281]
[1736149246305,3.1415581,3649.6,3649.1,0.09635773]
[1736149246481,0.4015081,3649.6,3648.7,0.8281]
[1736149246712,0.8051,3649.5,3649.2,0.09630332]
[1736149246981,3.54522,3649.5,3648.4,0.7525]
[1736149247182,3.54522,3649.5,3649.3,0.09624892]
[1736149247380,3.54522,3649.5,3648.4,0.7525]
[1736149247696,4.09522,3649.5,3649.4,0.09648218]
[1736149247895,4.8259961,3649.5,3648.4,0.7525]
[1736149248068,4.09522,3649.5,3648.4,6.13274346]
[1736149248394,4.09522,3649.5,3648.5,0.0969719]
[1736149250818,2.7402,3649.4,3648.5,0.0969719]
[1736149251115,2.74025,3649.3,3648.5,0.0969719]
[1736149251265,0.8098,3649.2,3648.5,0.0969719]
[1736149251471,2.74063,3648.8,3648.5,0.0969719]
[1736149251898,2.74063,3648.8,3648.1,0.7553]
[1736149252102,2.74063,3648.8,3648.6,0.09428085]
[1736149252296,0.7951,3648.7,3648.1,0.7553]
[1736149252677,0.7951,3648.7,3648.2,0.09449857]
[1736149254572,0.7951,3648.7,3648.2,2.73383203]
[1736149255169,3.150335,3649.2,3648.2,2.73383203]
[1736149255377,0.7665,3649.0,3648.5,2.63933346]
[1736149256009,0.7665,3649.0,3648.6,0.09428085]
[1736149257779,3.63777,3649.3,3648.6,0.84638085]
[1736149259009,0.7755,3649.3,3648.6,0.84638085]
[1736149259370,0.122,3649.5,3648.6,0.84638085]
[1736149259905,0.7517,3649.6,3648.6,0.84638085]
[1736149260114,2.74017,3649.4,3648.6,0.84638085]
[1736149260320,3.101557,3649.4,3648.6,0.84638085]
[1736149260485,3.49173,3649.6,3648.6,0.84638085]
[1736149261705,0.55,3649.5,3648.6,0.84638085]
[1736149261910,2.74024,3649.4,3648.6,0.84638085]
[1736149263920,0.122,3649.7,3649.2,0.8244]
[1736149264115,0.7501,3649.8,3649.2,0.8244]
[1736149264422,0.7501,3649.8,3649.4,2.63933346]
[1736149264423,1.13103668,3649.8,3649.4,2.63933346]
[1736149264954,1.13103668,3649.8,3649.5,0.09379116]
[1736149265396,2.73972,3650.0,3649.5,0.09379116]